[Event "January 2 Late 2024"]
[Site "https://www.chess.com"]
[Date "2024.01.02"]
[Round "1"]
[White "Vachier-Lagrave, Maxime"]
[Black "Korpics, Zsolt"]
[Result "1-0"]
[Board "3"]
[TimeControl "180+1"]
[WhiteFideId "623539"]
[BlackFideId "705241"]
[WhiteElo "3206"]
[BlackElo "2517"]
[WhiteTeam "FRA"]
[BlackTeam "HUN"]
[WhiteClock "0:01:25"]
[BlackClock "0:00:01"]

1. e4 {[%clk 0:03:00]}  c5 {[%clk 0:02:59]} 2. Nf3 {[%clk 0:03:00]}  e6 {[%clk 0:03:00]} 3. d4 {[%clk 0:03:00]}  cxd4 {[%clk 0:03:00]} 4. Nxd4 {[%clk 0:03:01]}  Nc6 {[%clk 0:03:00]} 5. Nc3 {[%clk 0:02:59]}  Qc7 {[%clk 0:03:00]} 6. Qd3 {[%clk 0:02:57]}  Nf6 {[%clk 0:02:58]} 7. Ndb5 {[%clk 0:02:56]}  Qb8 {[%clk 0:02:57]} 8. Qg3 {[%clk 0:02:55]}  d6 {[%clk 0:02:56]} 9. Bf4 {[%clk 0:02:53]}  e5 {[%clk 0:02:53]} 10. Bg5 {[%clk 0:02:41]}  a6 {[%clk 0:02:41]} 11. Na3 {[%clk 0:02:31]}  Be6 {[%clk 0:02:34]} 12. Bxf6 {[%clk 0:01:34]}  gxf6 {[%clk 0:02:34]} 13. Nc4 {[%clk 0:01:35]}  b5 {[%clk 0:02:09]} 14. Ne3 {[%clk 0:01:34]}  Nd4 {[%clk 0:02:09]} 15. Bd3 {[%clk 0:01:29]}  Bh6 {[%clk 0:01:38]} 16. Ncd5 {[%clk 0:01:29]}  Bxe3 {[%clk 0:01:33]} 17. fxe3 {[%clk 0:01:29]}  Bxd5 {[%clk 0:01:31]} 18. exd5 {[%clk 0:01:29]}  e4 {[%clk 0:00:27]} 19. Bxe4 {[%clk 0:01:27]}  Kf8 {[%clk 0:00:06]} 20. exd4 {[%clk 0:01:26]}  Qe8 {[%clk 0:00:05]} 21. Qf3 {[%clk 0:01:26]}  f5 {[%clk 0:00:03]} 22. Qxf5 {[%clk 0:01:25]}  Qe7 {[%clk 0:00:02]} 23. O-O {[%clk 0:01:26]}  Re8 {[%clk 0:00:01]} 24. Rae1 {[%clk 0:01:26]}  Rg8 {[%clk 0:00:01]} 25. Bd3 {[%clk 0:01:25]}  Qd8 {[%clk 0:00:01]} 26. Qxf7# {[%clk 0:01:25]} 1-0

[Event "January 2 Late 2024"]
[Site "https://www.chess.com"]
[Date "2024.01.02"]
[Round "1"]
[White "Weisz, Bryan"]
[Black "Firouzja, Alireza"]
[Result "0-1"]
[Board "4"]
[TimeControl "180+1"]
[WhiteFideId "30934133"]
[BlackFideId "12573981"]
[WhiteElo "2516"]
[BlackElo "3161"]
[WhiteTeam "USA"]
[BlackTeam "FRA"]
[WhiteClock "0:00:07"]
[BlackClock "0:01:12"]

1. e4 {[%clk 0:03:00]}  c6 {[%clk 0:03:00]} 2. d4 {[%clk 0:02:59]}  d5 {[%clk 0:03:01]} 3. f3 {[%clk 0:02:58]}  Qb6 {[%clk 0:03:01]} 4. Nc3 {[%clk 0:02:58]}  e6 {[%clk 0:02:53]} 5. a3 {[%clk 0:02:43]}  Nd7 {[%clk 0:02:51]} 6. Be3 {[%clk 0:02:42]}  Ngf6 {[%clk 0:02:43]} 7. e5 {[%clk 0:02:36]}  Nxe5 {[%clk 0:02:37]} 8. Na4 {[%clk 0:02:34]}  Qa5+ {[%clk 0:02:36]} 9. c3 {[%clk 0:02:26]}  Nc4 {[%clk 0:02:35]} 10. Bxc4 {[%clk 0:02:05]}  dxc4 {[%clk 0:02:36]} 11. Nc5 {[%clk 0:02:05]}  Nd5 {[%clk 0:02:34]} 12. Bf2 {[%clk 0:02:02]}  b6 {[%clk 0:02:04]} 13. Ne4 {[%clk 0:01:59]}  Nf4 {[%clk 0:02:04]} 14. b4 {[%clk 0:01:32]}  cxb3 {[%clk 0:01:58]} 15. g3 {[%clk 0:01:21]}  b2 {[%clk 0:01:54]} 16. Rb1 {[%clk 0:01:19]}  Nd5 {[%clk 0:01:55]} 17. Ne2 {[%clk 0:00:59]}  Bxa3 {[%clk 0:01:44]} 18. O-O {[%clk 0:00:56]}  Ba6 {[%clk 0:01:44]} 19. Re1 {[%clk 0:00:54]}  O-O {[%clk 0:01:39]} 20. Qc2 {[%clk 0:00:50]}  Bc4 {[%clk 0:01:31]} 21. Ng5 {[%clk 0:00:47]}  Nf6 {[%clk 0:01:31]} 22. Be3 {[%clk 0:00:33]}  Qb5 {[%clk 0:01:30]} 23. Nf4 {[%clk 0:00:25]}  Qb3 {[%clk 0:01:29]} 24. Qg2 {[%clk 0:00:22]}  h6 {[%clk 0:01:27]} 25. Ne4 {[%clk 0:00:21]}  Nxe4 {[%clk 0:01:26]} 26. fxe4 {[%clk 0:00:22]}  Qxc3 {[%clk 0:01:26]} 27. e5 {[%clk 0:00:16]}  Bd5 {[%clk 0:01:20]} 28. Qh3 {[%clk 0:00:16]}  Be4 {[%clk 0:01:15]} 29. Nh5 {[%clk 0:00:14]}  Bxb1 {[%clk 0:01:13]} 30. Nf6+ {[%clk 0:00:12]}  gxf6 {[%clk 0:01:12]} 31. Rf1 {[%clk 0:00:07]}  Qxe3+ {[%clk 0:01:12]} 0-1

[Event "January 2 Late 2024"]
[Site "https://www.chess.com"]
[Date "2024.01.02"]
[Round "1"]
[White "Naroditsky, Daniel"]
[Black "Bijaoui, Manuel"]
[Result "1-0"]
[Board "5"]
[TimeControl "180+1"]
[WhiteFideId "2026961"]
[BlackFideId "626783"]
[WhiteElo "3153"]
[BlackElo "2516"]
[WhiteTeam "USA"]
[BlackTeam "FRA"]
[WhiteClock "0:01:53"]
[BlackClock "0:01:20"]

1. e4 {[%clk 0:03:00]}  c5 {[%clk 0:02:57]} 2. c3 {[%clk 0:03:00]}  d5 {[%clk 0:02:57]} 3. exd5 {[%clk 0:03:01]}  Qxd5 {[%clk 0:02:57]} 4. d4 {[%clk 0:03:01]}  Nf6 {[%clk 0:02:57]} 5. Nf3 {[%clk 0:03:02]}  e6 {[%clk 0:02:57]} 6. Na3 {[%clk 0:03:02]}  Nc6 {[%clk 0:02:56]} 7. Be3 {[%clk 0:03:03]}  cxd4 {[%clk 0:02:55]} 8. Nb5 {[%clk 0:03:03]}  Qd8 {[%clk 0:02:55]} 9. Nbxd4 {[%clk 0:02:57]}  Bd7 {[%clk 0:02:54]} 10. Nxc6 {[%clk 0:02:53]}  Bxc6 {[%clk 0:02:55]} 11. Qxd8+ {[%clk 0:02:53]}  Kxd8 {[%clk 0:02:51]} 12. O-O-O+ {[%clk 0:02:48]}  Ke8 {[%clk 0:02:50]} 13. Ne5 {[%clk 0:02:48]}  Nd5 {[%clk 0:02:50]} 14. Bd4 {[%clk 0:02:36]}  Ba4 {[%clk 0:02:35]} 15. b3 {[%clk 0:02:31]}  Bc6 {[%clk 0:02:35]} 16. Nxc6 {[%clk 0:02:29]}  bxc6 {[%clk 0:02:35]} 17. Ba6 {[%clk 0:02:27]}  Ba3+ {[%clk 0:02:19]} 18. Kc2 {[%clk 0:02:27]}  Ke7 {[%clk 0:02:13]} 19. Bb7 {[%clk 0:02:19]}  Rab8 {[%clk 0:02:10]} 20. Bxc6 {[%clk 0:02:19]}  Nf6 {[%clk 0:01:58]} 21. Bxa7 {[%clk 0:02:13]}  Rbc8 {[%clk 0:01:58]} 22. Bf3 {[%clk 0:02:13]}  Bc5 {[%clk 0:01:53]} 23. Bxc5+ {[%clk 0:02:12]}  Rxc5 {[%clk 0:01:54]} 24. b4 {[%clk 0:02:10]}  Rc7 {[%clk 0:01:53]} 25. Kb3 {[%clk 0:02:09]}  Rhc8 {[%clk 0:01:51]} 26. Rd3 {[%clk 0:02:10]}  Nd7 {[%clk 0:01:51]} 27. Re1 {[%clk 0:02:08]}  Nb6 {[%clk 0:01:50]} 28. a4 {[%clk 0:02:09]}  Nc4 {[%clk 0:01:50]} 29. a5 {[%clk 0:02:09]}  Rb8 {[%clk 0:01:49]} 30. a6 {[%clk 0:02:06]}  Rb6 {[%clk 0:01:32]} 31. Ra1 {[%clk 0:01:55]}  Ne5 {[%clk 0:01:20]} 32. a7 {[%clk 0:01:53]} 1-0

[Event "January 2 Late 2024"]
[Site "https://www.chess.com"]
[Date "2024.01.02"]
[Round "1"]
[White "Kovacsy, Barnabas"]
[Black "Nepomniachtchi, Ian"]
[Result "0-1"]
[Board "6"]
[TimeControl "180+1"]
[WhiteFideId "769290"]
[BlackFideId "4168119"]
[WhiteElo "2516"]
[BlackElo "3133"]
[WhiteTeam "HUN"]
[BlackTeam "RUS"]
[WhiteClock "0:00:08"]
[BlackClock "0:01:38"]

1. e4 {[%clk 0:02:59]}  c5 {[%clk 0:02:58]} 2. Nf3 {[%clk 0:02:59]}  d6 {[%clk 0:02:59]} 3. d4 {[%clk 0:03:00]}  cxd4 {[%clk 0:02:59]} 4. Nxd4 {[%clk 0:03:01]}  Nf6 {[%clk 0:03:00]} 5. f3 {[%clk 0:03:01]}  e5 {[%clk 0:03:00]} 6. Nb3 {[%clk 0:03:01]}  a5 {[%clk 0:03:00]} 7. Nc3 {[%clk 0:02:44]}  a4 {[%clk 0:02:55]} 8. Nd2 {[%clk 0:02:41]}  Be7 {[%clk 0:02:54]} 9. Bd3 {[%clk 0:02:37]}  O-O {[%clk 0:02:53]} 10. O-O {[%clk 0:02:37]}  Be6 {[%clk 0:02:52]} 11. Nc4 {[%clk 0:02:33]}  Nc6 {[%clk 0:02:51]} 12. Be3 {[%clk 0:02:31]}  Nb4 {[%clk 0:02:48]} 13. a3 {[%clk 0:02:25]}  Nxd3 {[%clk 0:02:45]} 14. Qxd3 {[%clk 0:02:26]}  Ra6 {[%clk 0:02:46]} 15. Rfd1 {[%clk 0:02:13]}  Qc7 {[%clk 0:02:45]} 16. Nd2 {[%clk 0:02:02]}  h6 {[%clk 0:02:45]} 17. Nd5 {[%clk 0:01:57]}  Nxd5 {[%clk 0:02:43]} 18. exd5 {[%clk 0:01:58]}  Bd7 {[%clk 0:02:44]} 19. c4 {[%clk 0:01:58]}  f5 {[%clk 0:02:43]} 20. Rac1 {[%clk 0:01:49]}  Rc8 {[%clk 0:02:28]} 21. c5 {[%clk 0:01:32]}  dxc5 {[%clk 0:02:28]} 22. Nc4 {[%clk 0:01:32]}  Bf6 {[%clk 0:02:25]} 23. d6 {[%clk 0:01:07]}  Qc6 {[%clk 0:02:22]} 24. Qd5+ {[%clk 0:01:01]}  Qxd5 {[%clk 0:02:21]} 25. Rxd5 {[%clk 0:01:02]}  Be6 {[%clk 0:02:13]} 26. Rdd1 {[%clk 0:00:42]}  b5 {[%clk 0:02:08]} 27. Nd2 {[%clk 0:00:34]}  Rb6 {[%clk 0:02:07]} 28. Rxc5 {[%clk 0:00:25]}  Rxd6 {[%clk 0:02:04]} 29. Rxc8+ {[%clk 0:00:26]}  Bxc8 {[%clk 0:02:04]} 30. Rc1 {[%clk 0:00:26]}  Be6 {[%clk 0:02:03]} 31. Nb1 {[%clk 0:00:24]}  Bc4 {[%clk 0:02:01]} 32. Nc3 {[%clk 0:00:23]}  Rd3 {[%clk 0:02:01]} 33. Kf2 {[%clk 0:00:23]}  Kf7 {[%clk 0:01:58]} 34. Rd1 {[%clk 0:00:22]}  Ke6 {[%clk 0:01:56]} 35. Rxd3 {[%clk 0:00:22]}  Bxd3 {[%clk 0:01:57]} 36. Ke1 {[%clk 0:00:22]}  g5 {[%clk 0:01:56]} 37. Kd2 {[%clk 0:00:21]}  Bf1 {[%clk 0:01:56]} 38. g3 {[%clk 0:00:22]}  f4 {[%clk 0:01:56]} 39. Bf2 {[%clk 0:00:20]}  Bd8 {[%clk 0:01:56]} 40. Ne4 {[%clk 0:00:19]}  Ba5+ {[%clk 0:01:56]} 41. Kd1 {[%clk 0:00:18]}  Bc4 {[%clk 0:01:55]} 42. Nc5+ {[%clk 0:00:16]}  Kd5 {[%clk 0:01:54]} 43. Ne4 {[%clk 0:00:16]}  Bd3 {[%clk 0:01:53]} 44. Nf6+ {[%clk 0:00:12]}  Kc4 {[%clk 0:01:53]} 45. Ng4 {[%clk 0:00:13]}  Bc7 {[%clk 0:01:49]} 46. Nxh6 {[%clk 0:00:13]}  Kb3 {[%clk 0:01:49]} 47. Kc1 {[%clk 0:00:12]}  e4 {[%clk 0:01:49]} 48. fxe4 {[%clk 0:00:12]}  Be5 {[%clk 0:01:49]} 49. Nf7 {[%clk 0:00:10]}  Bxb2+ {[%clk 0:01:48]} 50. Kd2 {[%clk 0:00:11]}  Bxe4 {[%clk 0:01:45]} 51. Nxg5 {[%clk 0:00:11]}  Bd5 {[%clk 0:01:45]} 52. gxf4 {[%clk 0:00:11]}  Bxa3 {[%clk 0:01:45]} 53. f5 {[%clk 0:00:11]}  Bb4+ {[%clk 0:01:44]} 54. Kc1 {[%clk 0:00:06]}  a3 {[%clk 0:01:45]} 55. Bd4 {[%clk 0:00:06]}  a2 {[%clk 0:01:45]} 56. Ba1 {[%clk 0:00:05]}  Bc3 {[%clk 0:01:45]} 57. Ne6 {[%clk 0:00:05]}  Bxa1 {[%clk 0:01:44]} 58. Nc5+ {[%clk 0:00:05]}  Ka3 {[%clk 0:01:45]} 59. Nd3 {[%clk 0:00:01]}  Bh8 {[%clk 0:01:46]} 60. Kc2 {[%clk 0:00:01]}  a1=N+ {[%clk 0:01:44]} 61. Kd2 {[%clk 0:00:01]}  Nb3+ {[%clk 0:01:45]} 62. Ke3 {[%clk 0:00:02]}  Nd4 {[%clk 0:01:45]} 63. Kf4 {[%clk 0:00:02]}  b4 {[%clk 0:01:45]} 64. h4 {[%clk 0:00:03]}  b3 {[%clk 0:01:45]} 65. h5 {[%clk 0:00:03]}  Bc4 {[%clk 0:01:45]} 66. Nc1 {[%clk 0:00:03]}  b2 {[%clk 0:01:45]} 67. h6 {[%clk 0:00:03]}  bxc1=N {[%clk 0:01:45]} 68. Kg5 {[%clk 0:00:04]}  Nd3 {[%clk 0:01:45]} 69. Kg6 {[%clk 0:00:05]}  Bg8 {[%clk 0:01:44]} 70. f6 {[%clk 0:00:05]}  Ne5+ {[%clk 0:01:45]} 71. Kg5 {[%clk 0:00:05]}  Bh7 {[%clk 0:01:44]} 72. f7 {[%clk 0:00:05]}  Nxf7+ {[%clk 0:01:44]} 73. Kh5 {[%clk 0:00:06]}  Bf6 {[%clk 0:01:42]} 74. Kg4 {[%clk 0:00:06]}  Kb4 {[%clk 0:01:42]} 75. Kf4 {[%clk 0:00:06]}  Kc4 {[%clk 0:01:42]} 76. Kg4 {[%clk 0:00:07]}  Kd3 {[%clk 0:01:42]} 77. Kh5 {[%clk 0:00:08]}  Bf5 {[%clk 0:01:36]} 78. h7 {[%clk 0:00:09]}  Ne6 {[%clk 0:01:37]} 79. h8=N {[%clk 0:00:08]}  Nf4# {[%clk 0:01:38]} 0-1

[Event "January 2 Late 2024"]
[Site "https://www.chess.com"]
[Date "2024.01.02"]
[Round "1"]
[White "Aronian, Levon"]
[Black "Matta, Nicholas"]
[Result "1-0"]
[Board "7"]
[TimeControl "180+1"]
[WhiteFideId "13300474"]
[BlackFideId "30914523"]
[WhiteElo "3117"]
[BlackElo "2515"]
[WhiteTeam "USA"]
[BlackTeam "USA"]
[WhiteClock "0:01:44"]
[BlackClock "0:00:18"]

1. e4 {[%clk 0:03:00]}  c5 {[%clk 0:02:55]} 2. Nf3 {[%clk 0:03:00]}  Nf6 {[%clk 0:02:54]} 3. e5 {[%clk 0:02:59]}  Nd5 {[%clk 0:02:54]} 4. Nc3 {[%clk 0:03:00]}  e6 {[%clk 0:02:55]} 5. Ne4 {[%clk 0:03:00]}  Nc6 {[%clk 0:02:54]} 6. c4 {[%clk 0:02:59]}  f5 {[%clk 0:02:55]} 7. Nd6+ {[%clk 0:02:51]}  Bxd6 {[%clk 0:02:54]} 8. exd6 {[%clk 0:02:52]}  Nf6 {[%clk 0:02:53]} 9. d4 {[%clk 0:02:51]}  cxd4 {[%clk 0:02:53]} 10. Nxd4 {[%clk 0:02:51]}  Qa5+ {[%clk 0:02:54]} 11. Bd2 {[%clk 0:02:47]}  Qe5+ {[%clk 0:02:53]} 12. Be3 {[%clk 0:02:43]}  f4 {[%clk 0:02:53]} 13. Nxc6 {[%clk 0:02:41]}  bxc6 {[%clk 0:02:49]} 14. Qd4 {[%clk 0:02:40]}  Qxd4 {[%clk 0:02:14]} 15. Bxd4 {[%clk 0:02:40]}  O-O {[%clk 0:02:15]} 16. O-O-O {[%clk 0:02:39]}  Ne4 {[%clk 0:02:13]} 17. Bd3 {[%clk 0:02:30]}  Nf6 {[%clk 0:01:46]} 18. f3 {[%clk 0:02:24]}  Ba6 {[%clk 0:01:41]} 19. Rhe1 {[%clk 0:02:22]}  Rac8 {[%clk 0:01:34]} 20. Re5 {[%clk 0:02:21]}  h6 {[%clk 0:01:26]} 21. Ra5 {[%clk 0:02:20]}  Bb7 {[%clk 0:01:18]} 22. Rxa7 {[%clk 0:02:20]}  Rb8 {[%clk 0:01:18]} 23. c5 {[%clk 0:02:09]}  Nd5 {[%clk 0:01:09]} 24. Re1 {[%clk 0:02:09]}  Bc8 {[%clk 0:01:07]} 25. a3 {[%clk 0:02:07]}  g5 {[%clk 0:00:58]} 26. b4 {[%clk 0:02:04]}  Bb7 {[%clk 0:00:52]} 27. Kb2 {[%clk 0:02:02]}  Rfe8 {[%clk 0:00:50]} 28. Re5 {[%clk 0:02:00]}  Kf7 {[%clk 0:00:50]} 29. Kb3 {[%clk 0:01:57]}  Rg8 {[%clk 0:00:37]} 30. h3 {[%clk 0:01:56]}  h5 {[%clk 0:00:35]} 31. Be4 {[%clk 0:01:51]}  g4 {[%clk 0:00:34]} 32. Rxh5 {[%clk 0:01:49]}  gxh3 {[%clk 0:00:30]} 33. Rh7+ {[%clk 0:01:49]}  Ke8 {[%clk 0:00:29]} 34. gxh3 {[%clk 0:01:48]}  Ne3 {[%clk 0:00:22]} 35. Re7+ {[%clk 0:01:47]}  Kd8 {[%clk 0:00:23]} 36. Bf6 {[%clk 0:01:46]}  Kc8 {[%clk 0:00:18]} 37. Bxc6 {[%clk 0:01:44]} 1-0

[Event "January 2 Late 2024"]
[Site "https://www.chess.com"]
[Date "2024.01.02"]
[Round "1"]
[White "Davidson, Kevin"]
[Black "Paravyan, David"]
[Result "0-1"]
[Board "8"]
[TimeControl "180+1"]
[WhiteFideId "2056810"]
[BlackFideId "4194985"]
[WhiteElo "2514"]
[BlackElo "3107"]
[WhiteTeam "USA"]
[BlackTeam "FID"]
[WhiteClock "0:00:00"]
[BlackClock "0:00:34"]

1. e4 {[%clk 0:03:00]}  e5 {[%clk 0:02:59]} 2. Nf3 {[%clk 0:03:00]}  Nf6 {[%clk 0:03:00]} 3. Nxe5 {[%clk 0:02:58]}  d6 {[%clk 0:03:00]} 4. Nf3 {[%clk 0:02:58]}  Nxe4 {[%clk 0:03:00]} 5. Nc3 {[%clk 0:02:58]}  Nxc3 {[%clk 0:03:01]} 6. dxc3 {[%clk 0:02:59]}  Be7 {[%clk 0:03:01]} 7. Bf4 {[%clk 0:02:59]}  O-O {[%clk 0:03:01]} 8. Qd2 {[%clk 0:02:59]}  Nd7 {[%clk 0:03:02]} 9. O-O-O {[%clk 0:02:59]}  Re8 {[%clk 0:03:02]} 10. Bd3 {[%clk 0:02:56]}  Nc5 {[%clk 0:03:01]} 11. h3 {[%clk 0:02:46]}  Nxd3+ {[%clk 0:02:55]} 12. Qxd3 {[%clk 0:02:45]}  Bd7 {[%clk 0:02:56]} 13. Rhe1 {[%clk 0:02:42]}  Bf6 {[%clk 0:02:52]} 14. g4 {[%clk 0:02:34]}  g6 {[%clk 0:02:35]} 15. Rxe8+ {[%clk 0:02:21]}  Qxe8 {[%clk 0:02:36]} 16. Re1 {[%clk 0:02:19]}  Qf8 {[%clk 0:02:15]} 17. Qd2 {[%clk 0:02:10]}  Re8 {[%clk 0:02:02]} 18. Bh6 {[%clk 0:01:52]}  Rxe1+ {[%clk 0:01:45]} 19. Nxe1 {[%clk 0:01:53]}  Qe7 {[%clk 0:01:44]} 20. Qe3 {[%clk 0:01:47]}  Qxe3+ {[%clk 0:01:42]} 21. Bxe3 {[%clk 0:01:47]}  b6 {[%clk 0:01:37]} 22. Kd2 {[%clk 0:01:37]}  h5 {[%clk 0:01:29]} 23. f3 {[%clk 0:01:31]}  Bd8 {[%clk 0:01:18]} 24. c4 {[%clk 0:01:22]}  hxg4 {[%clk 0:01:13]} 25. hxg4 {[%clk 0:01:21]}  a6 {[%clk 0:00:59]} 26. Nd3 {[%clk 0:01:11]}  Bc6 {[%clk 0:00:45]} 27. f4 {[%clk 0:01:05]}  f6 {[%clk 0:00:42]} 28. g5 {[%clk 0:00:54]}  Kf7 {[%clk 0:00:41]} 29. Nb4 {[%clk 0:00:39]}  Bb7 {[%clk 0:00:41]} 30. Kd3 {[%clk 0:00:33]}  Ke6 {[%clk 0:00:40]} 31. gxf6 {[%clk 0:00:24]}  Bxf6 {[%clk 0:00:41]} 32. c3 {[%clk 0:00:23]}  c5 {[%clk 0:00:38]} 33. Nc2 {[%clk 0:00:22]}  b5 {[%clk 0:00:38]} 34. cxb5 {[%clk 0:00:17]}  axb5 {[%clk 0:00:39]} 35. b3 {[%clk 0:00:15]}  Kf5 {[%clk 0:00:37]} 36. c4 {[%clk 0:00:07]}  Be4+ {[%clk 0:00:35]} 37. Kd2 {[%clk 0:00:07]}  b4 {[%clk 0:00:35]} 38. Ne1 {[%clk 0:00:04]}  Bc3+ {[%clk 0:00:35]} 39. Ke2 {[%clk 0:00:04]}  Bb1 {[%clk 0:00:36]} 40. Nd3 {[%clk 0:00:01]}  Bxa2 {[%clk 0:00:36]} 41. Nc1 {[%clk 0:00:01]}  Bb1 {[%clk 0:00:37]} 42. Bd2 {[%clk 0:00:01]}  Bxd2 {[%clk 0:00:35]} 43. Kxd2 {[%clk 0:00:02]}  Kxf4 {[%clk 0:00:35]} 44. Ke2 {[%clk 0:00:00]}  g5 {[%clk 0:00:34]} 0-1

[Event "January 2 Late 2024"]
[Site "https://www.chess.com"]
[Date "2024.01.02"]
[Round "1"]
[White "Oparin, Grigoriy"]
[Black "Jimenez Almeida, Luis David"]
[Result "1-0"]
[Board "11"]
[TimeControl "180+1"]
[WhiteFideId "24125890"]
[BlackFideId "22242244"]
[WhiteElo "3050"]
[BlackElo "2511"]
[WhiteTeam "USA"]
[BlackTeam "ESP"]
[WhiteClock "0:01:42"]
[BlackClock "0:00:17"]

1. Nf3 {[%clk 0:03:00]}  b6 {[%clk 0:02:54]} 2. g3 {[%clk 0:03:01]}  Bb7 {[%clk 0:02:54]} 3. c4 {[%clk 0:03:02]}  Nf6 {[%clk 0:02:54]} 4. Bg2 {[%clk 0:03:02]}  e6 {[%clk 0:02:54]} 5. d4 {[%clk 0:03:03]}  Be7 {[%clk 0:02:49]} 6. O-O {[%clk 0:03:03]}  O-O {[%clk 0:02:49]} 7. Nc3 {[%clk 0:03:03]}  Ne4 {[%clk 0:02:49]} 8. Bd2 {[%clk 0:03:04]}  Nxd2 {[%clk 0:02:49]} 9. Qxd2 {[%clk 0:03:04]}  d6 {[%clk 0:02:45]} 10. e4 {[%clk 0:02:59]}  Nd7 {[%clk 0:02:45]} 11. Rad1 {[%clk 0:02:58]}  c5 {[%clk 0:02:35]} 12. e5 {[%clk 0:02:42]}  cxd4 {[%clk 0:01:47]} 13. Qxd4 {[%clk 0:02:25]}  Bxf3 {[%clk 0:01:38]} 14. Bxf3 {[%clk 0:02:26]}  Nxe5 {[%clk 0:01:38]} 15. Bxa8 {[%clk 0:02:26]}  Qxa8 {[%clk 0:01:39]} 16. Qe4 {[%clk 0:02:27]}  Qxe4 {[%clk 0:01:35]} 17. Nxe4 {[%clk 0:02:28]}  Nxc4 {[%clk 0:01:36]} 18. b3 {[%clk 0:02:28]}  d5 {[%clk 0:01:30]} 19. bxc4 {[%clk 0:02:28]}  dxe4 {[%clk 0:01:30]} 20. Rd7 {[%clk 0:02:29]}  Bc5 {[%clk 0:01:27]} 21. Rxa7 {[%clk 0:02:28]}  Rd8 {[%clk 0:01:21]} 22. Re1 {[%clk 0:02:23]}  g5 {[%clk 0:01:10]} 23. Re2 {[%clk 0:02:01]}  Rd4 {[%clk 0:01:03]} 24. Rc2 {[%clk 0:02:01]}  Kg7 {[%clk 0:00:57]} 25. a4 {[%clk 0:02:00]}  Rd3 {[%clk 0:00:52]} 26. a5 {[%clk 0:01:58]}  e3 {[%clk 0:00:49]} 27. fxe3 {[%clk 0:01:57]}  Rxe3 {[%clk 0:00:49]} 28. Kg2 {[%clk 0:01:57]}  g4 {[%clk 0:00:29]} 29. Kf1 {[%clk 0:01:45]}  bxa5 {[%clk 0:00:19]} 30. Rxa5 {[%clk 0:01:44]}  Bb4 {[%clk 0:00:19]} 31. Rg5+ {[%clk 0:01:42]}  Kf6 {[%clk 0:00:18]} 32. Rxg4 {[%clk 0:01:43]}  Ke5 {[%clk 0:00:18]} 33. c5 {[%clk 0:01:42]}  f5 {[%clk 0:00:17]} 34. Rxb4 {[%clk 0:01:42]} 1-0

[Event "January 2 Late 2024"]
[Site "https://www.chess.com"]
[Date "2024.01.02"]
[Round "1"]
[White "Leyva Proenza, Richard"]
[Black "Martinez Alcantara, Jose Eduardo"]
[Result "0-1"]
[Board "12"]
[TimeControl "180+1"]
[WhiteFideId "3500985"]
[BlackFideId "3805662"]
[WhiteElo "2511"]
[BlackElo "3049"]
[WhiteTeam "VEN"]
[BlackTeam "PER"]
[WhiteClock "0:00:00"]
[BlackClock "0:00:43"]

1. e4 {[%clk 0:02:57]}  c5 {[%clk 0:03:00]} 2. Nf3 {[%clk 0:02:56]}  d6 {[%clk 0:03:00]} 3. d4 {[%clk 0:02:55]}  cxd4 {[%clk 0:03:01]} 4. Nxd4 {[%clk 0:02:54]}  a6 {[%clk 0:03:02]} 5. Nc3 {[%clk 0:02:54]}  e6 {[%clk 0:03:02]} 6. Bc4 {[%clk 0:02:53]}  Nf6 {[%clk 0:03:01]} 7. Bb3 {[%clk 0:02:53]}  Nbd7 {[%clk 0:02:59]} 8. Bg5 {[%clk 0:02:52]}  Nc5 {[%clk 0:02:59]} 9. Qe2 {[%clk 0:02:50]}  Qa5 {[%clk 0:02:55]} 10. Bxf6 {[%clk 0:02:45]}  gxf6 {[%clk 0:02:56]} 11. O-O-O {[%clk 0:02:42]}  Bd7 {[%clk 0:02:55]} 12. Kb1 {[%clk 0:02:41]}  O-O-O {[%clk 0:02:50]} 13. a3 {[%clk 0:02:32]}  Nxb3 {[%clk 0:02:43]} 14. cxb3 {[%clk 0:02:30]}  Kb8 {[%clk 0:02:36]} 15. Rc1 {[%clk 0:02:29]}  Be7 {[%clk 0:02:34]} 16. Rhd1 {[%clk 0:02:23]}  Rc8 {[%clk 0:02:34]} 17. f4 {[%clk 0:02:11]}  h5 {[%clk 0:02:28]} 18. g3 {[%clk 0:02:06]}  h4 {[%clk 0:02:28]} 19. g4 {[%clk 0:02:02]}  h3 {[%clk 0:02:28]} 20. Rc2 {[%clk 0:01:38]}  Qb6 {[%clk 0:02:28]} 21. b4 {[%clk 0:01:37]}  Rhg8 {[%clk 0:02:26]} 22. Qf3 {[%clk 0:01:31]}  Rc4 {[%clk 0:02:20]} 23. Rcd2 {[%clk 0:01:24]}  Rh8 {[%clk 0:02:01]} 24. Qd3 {[%clk 0:01:18]}  Rcc8 {[%clk 0:02:01]} 25. Nb3 {[%clk 0:01:06]}  Bc6 {[%clk 0:01:50]} 26. Qe2 {[%clk 0:01:03]}  Rhe8 {[%clk 0:01:34]} 27. Na5 {[%clk 0:01:00]}  Bb5 {[%clk 0:01:30]} 28. Nxb5 {[%clk 0:00:55]}  Qxb5 {[%clk 0:01:28]} 29. Qxb5 {[%clk 0:00:55]}  axb5 {[%clk 0:01:29]} 30. Rd3 {[%clk 0:00:50]}  Rg8 {[%clk 0:01:30]} 31. Rg1 {[%clk 0:00:49]}  Rh8 {[%clk 0:01:30]} 32. Rgg3 {[%clk 0:00:44]}  Rh4 {[%clk 0:01:30]} 33. Rc3 {[%clk 0:00:40]}  Rg8 {[%clk 0:01:27]} 34. Nb3 {[%clk 0:00:38]}  Rhxg4 {[%clk 0:01:22]} 35. Rxg4 {[%clk 0:00:39]}  Rxg4 {[%clk 0:01:22]} 36. Rxh3 {[%clk 0:00:39]}  Rxf4 {[%clk 0:01:11]} 37. Rh7 {[%clk 0:00:39]}  Rxe4 {[%clk 0:01:08]} 38. Rxf7 {[%clk 0:00:39]}  Bd8 {[%clk 0:01:09]} 39. Rh7 {[%clk 0:00:34]}  f5 {[%clk 0:01:08]} 40. Kc2 {[%clk 0:00:32]}  Bb6 {[%clk 0:00:56]} 41. h4 {[%clk 0:00:28]}  Re2+ {[%clk 0:00:56]} 42. Kb1 {[%clk 0:00:27]}  Rh2 {[%clk 0:00:53]} 43. h5 {[%clk 0:00:20]}  f4 {[%clk 0:00:53]} 44. h6 {[%clk 0:00:16]}  f3 {[%clk 0:00:50]} 45. Na5 {[%clk 0:00:13]}  Bxa5 {[%clk 0:00:42]} 46. bxa5 {[%clk 0:00:13]}  f2 {[%clk 0:00:43]} 47. Rf7 {[%clk 0:00:00]}  Rh1+ {[%clk 0:00:43]} 0-1